[Event "Titled Tuesday Blitz December 20 Early 2022"]
[White "politeplayer"]
[Black "Zozik, S. Mohammed"]
[BlackFideId "4803280"]
[WhiteElo "2244"]
[BlackElo "2116"]
[Result "1-0"]
[Round "04"]
[TimeControl "180+2"]
[Date "2022.12.20"]
[WhiteClock "0:00:07"]
[BlackClock "0:00:53"]

1. e4 {[%clk 0:03:00]}  c5 {[%clk 0:02:56]} 2. Nf3 {[%clk 0:03:00]}  d6 {[%clk 0:02:56]} 3. d4 {[%clk 0:03:01]}  cxd4 {[%clk 0:02:57]} 4. Nxd4 {[%clk 0:03:01]}  Nf6 {[%clk 0:02:58]} 5. Nc3 {[%clk 0:03:01]}  a6 {[%clk 0:02:58]} 6. Bc4 {[%clk 0:03:01]}  e6 {[%clk 0:02:58]} 7. a4 {[%clk 0:02:59]}  Nc6 {[%clk 0:02:55]} 8. O-O {[%clk 0:02:56]}  Be7 {[%clk 0:02:55]} 9. Ba2 {[%clk 0:02:56]}  O-O {[%clk 0:02:54]} 10. Be3 {[%clk 0:02:51]}  Nb4 {[%clk 0:02:54]} 11. Bb3 {[%clk 0:02:51]}  d5 {[%clk 0:02:53]} 12. e5 {[%clk 0:02:48]}  Nd7 {[%clk 0:02:52]} 13. f4 {[%clk 0:02:47]}  Nc5 {[%clk 0:02:51]} 14. f5 {[%clk 0:02:40]}  Bg5 {[%clk 0:02:49]} 15. Qd2 {[%clk 0:01:50]}  Bxe3+ {[%clk 0:02:39]} 16. Qxe3 {[%clk 0:01:49]}  Nxb3 {[%clk 0:02:34]} 17. cxb3 {[%clk 0:01:47]}  exf5 {[%clk 0:02:32]} 18. Rad1 {[%clk 0:01:37]}  g6 {[%clk 0:02:30]} 19. Qh6 {[%clk 0:01:28]}  Be6 {[%clk 0:02:28]} 20. Rf4 {[%clk 0:01:11]}  Qb6 {[%clk 0:02:02]} 21. Rh4 {[%clk 0:01:03]}  Rfe8 {[%clk 0:01:51]} 22. Qxh7+ {[%clk 0:01:01]}  Kf8 {[%clk 0:01:51]} 23. Qh8+ {[%clk 0:00:53]}  Ke7 {[%clk 0:01:51]} 24. Qf6+ {[%clk 0:00:53]}  Kd7 {[%clk 0:01:51]} 25. Kh1 {[%clk 0:00:49]}  Nc6 {[%clk 0:01:40]} 26. Nxe6 {[%clk 0:00:29]}  fxe6 {[%clk 0:01:40]} 27. Rh7+ {[%clk 0:00:23]}  Re7 {[%clk 0:01:31]} 28. Nxd5 {[%clk 0:00:16]}  Qxb3 {[%clk 0:01:04]} 29. Rxe7+ {[%clk 0:00:10]}  Nxe7 {[%clk 0:01:02]} 30. Qxe7+ {[%clk 0:00:10]}  Kc6 {[%clk 0:01:02]} 31. Qxe6+ {[%clk 0:00:10]}  Kc5 {[%clk 0:01:01]} 32. Qe7+ {[%clk 0:00:07]}  Kc6 {[%clk 0:00:53]} 33. Qc7# {[%clk 0:00:07]} 1-0


[Site "https://www.chess.com"]

[Event "Titled Tuesday Blitz December 20 Early 2022"]
[White "profofchess"]
[Black "ChessFanNM"]
[WhiteElo "2442"]
[BlackElo "2395"]
[Result "0-1"]
[Round "04"]
[TimeControl "180+2"]
[Date "2022.12.20"]
[WhiteClock "0:00:04"]
[BlackClock "0:00:08"]

1. e4 {[%clk 0:03:00]}  c6 {[%clk 0:02:54]} 2. d4 {[%clk 0:02:59]}  d5 {[%clk 0:02:55]} 3. e5 {[%clk 0:02:57]}  Bf5 {[%clk 0:02:54]} 4. Nd2 {[%clk 0:02:56]}  e6 {[%clk 0:02:51]} 5. Nb3 {[%clk 0:02:56]}  Nd7 {[%clk 0:02:48]} 6. Nf3 {[%clk 0:02:56]}  h6 {[%clk 0:02:47]} 7. Be2 {[%clk 0:02:54]}  a6 {[%clk 0:02:43]} 8. a4 {[%clk 0:02:53]}  c5 {[%clk 0:02:42]} 9. c3 {[%clk 0:02:45]}  Rc8 {[%clk 0:02:40]} 10. O-O {[%clk 0:02:30]}  Ne7 {[%clk 0:02:38]} 11. Nxc5 {[%clk 0:02:23]}  Nxc5 {[%clk 0:02:38]} 12. dxc5 {[%clk 0:02:23]}  Rxc5 {[%clk 0:02:37]} 13. b4 {[%clk 0:02:13]}  Rxc3 {[%clk 0:02:21]} 14. b5 {[%clk 0:02:01]}  a5 {[%clk 0:02:10]} 15. Bd2 {[%clk 0:01:57]}  Rc8 {[%clk 0:02:09]} 16. Nd4 {[%clk 0:01:52]}  Bh7 {[%clk 0:01:58]} 17. Qe1 {[%clk 0:01:15]}  b6 {[%clk 0:01:18]} 18. Rc1 {[%clk 0:01:09]}  Nf5 {[%clk 0:01:04]} 19. Nc6 {[%clk 0:01:05]}  Qd7 {[%clk 0:00:57]} 20. g4 {[%clk 0:00:54]}  Nh4 {[%clk 0:00:53]} 21. Be3 {[%clk 0:00:53]}  Bc5 {[%clk 0:00:15]} 22. Rxc5 {[%clk 0:00:41]}  bxc5 {[%clk 0:00:16]} 23. Bxc5 {[%clk 0:00:42]}  d4 {[%clk 0:00:16]} 24. Bd6 {[%clk 0:00:19]}  Rxc6 {[%clk 0:00:14]} 25. bxc6 {[%clk 0:00:18]}  Qxc6 {[%clk 0:00:15]} 26. f3 {[%clk 0:00:19]}  d3 {[%clk 0:00:14]} 27. Bxd3 {[%clk 0:00:18]}  Bxd3 {[%clk 0:00:13]} 28. Qxh4 {[%clk 0:00:17]}  g5 {[%clk 0:00:13]} 29. Qf2 {[%clk 0:00:13]}  Bxf1 {[%clk 0:00:12]} 30. Qxf1 {[%clk 0:00:12]}  Kd7 {[%clk 0:00:12]} 31. Qd3 {[%clk 0:00:11]}  Rc8 {[%clk 0:00:12]} 32. Qh7 {[%clk 0:00:10]}  Qc1+ {[%clk 0:00:11]} 33. Kg2 {[%clk 0:00:10]}  Qc2+ {[%clk 0:00:11]} 34. Qxc2 {[%clk 0:00:10]}  Rxc2+ {[%clk 0:00:12]} 35. Kg3 {[%clk 0:00:11]}  Ra2 {[%clk 0:00:12]} 36. h4 {[%clk 0:00:11]}  Rxa4 {[%clk 0:00:12]} 37. Bf8 {[%clk 0:00:09]}  gxh4+ {[%clk 0:00:11]} 38. Kxh4 {[%clk 0:00:09]}  Rc4 {[%clk 0:00:09]} 39. Bxh6 {[%clk 0:00:07]}  a4 {[%clk 0:00:09]} 40. Bf8 {[%clk 0:00:07]}  Rc3 {[%clk 0:00:09]} 41. f4 {[%clk 0:00:07]}  a3 {[%clk 0:00:08]} 42. Bb4 {[%clk 0:00:05]}  Rb3 {[%clk 0:00:08]} 43. Bc5 {[%clk 0:00:03]}  a2 {[%clk 0:00:08]} 44. Bd4 {[%clk 0:00:04]}  Rb1 {[%clk 0:00:09]} 45. Kg5 {[%clk 0:00:04]}  a1=Q {[%clk 0:00:07]} 46. Bxa1 {[%clk 0:00:05]}  Rxa1 {[%clk 0:00:08]} 47. Kf6 {[%clk 0:00:06]}  Ke8 {[%clk 0:00:08]} 48. f5 {[%clk 0:00:05]}  Ra4 {[%clk 0:00:08]} 49. g5 {[%clk 0:00:05]}  exf5 {[%clk 0:00:08]} 50. e6 {[%clk 0:00:04]}  fxe6 {[%clk 0:00:08]} 51. g6 {[%clk 0:00:04]}  Rg4 {[%clk 0:00:08]} 52. g7 {[%clk 0:00:04]}  f4 {[%clk 0:00:08]} 0-1


[Site "https://www.chess.com"]

[Event "Titled Tuesday Blitz December 20 Early 2022"]
[White "talaicito"]
[Black "KarstenHansch"]
[WhiteElo "2293"]
[BlackElo "2520"]
[Result "0-1"]
[Round "04"]
[TimeControl "180+2"]
[Date "2022.12.20"]
[WhiteClock "0:00:07"]
[BlackClock "0:00:23"]

1. d4 {[%clk 0:02:17]}  Nf6 {[%clk 0:02:59]} 2. Bf4 {[%clk 0:02:13]}  c5 {[%clk 0:02:59]} 3. e3 {[%clk 0:02:13]}  cxd4 {[%clk 0:02:58]} 4. exd4 {[%clk 0:02:12]}  d5 {[%clk 0:02:59]} 5. Nc3 {[%clk 0:02:12]}  Bg4 {[%clk 0:02:52]} 6. f3 {[%clk 0:02:10]}  Bh5 {[%clk 0:02:52]} 7. Nb5 {[%clk 0:02:07]}  Na6 {[%clk 0:02:49]} 8. c3 {[%clk 0:02:07]}  e6 {[%clk 0:02:48]} 9. h4 {[%clk 0:01:46]}  Bg6 {[%clk 0:02:32]} 10. g4 {[%clk 0:01:46]}  h5 {[%clk 0:02:29]} 11. g5 {[%clk 0:01:45]}  Nd7 {[%clk 0:02:27]} 12. Bd3 {[%clk 0:01:46]}  Bxd3 {[%clk 0:02:24]} 13. Qxd3 {[%clk 0:01:47]}  g6 {[%clk 0:02:23]} 14. Ne2 {[%clk 0:01:46]}  Be7 {[%clk 0:02:15]} 15. O-O-O {[%clk 0:01:25]}  O-O {[%clk 0:02:01]} 16. Kb1 {[%clk 0:01:25]}  Nb6 {[%clk 0:01:58]} 17. Be5 {[%clk 0:01:21]}  Nc4 {[%clk 0:01:55]} 18. Nf4 {[%clk 0:01:18]}  Nxe5 {[%clk 0:01:34]} 19. dxe5 {[%clk 0:01:17]}  Kg7 {[%clk 0:01:34]} 20. Nd4 {[%clk 0:01:01]}  Nc5 {[%clk 0:01:26]} 21. Qc2 {[%clk 0:00:59]}  Qb6 {[%clk 0:01:16]} 22. Ka1 {[%clk 0:00:48]}  a5 {[%clk 0:01:10]} 23. Rhg1 {[%clk 0:00:42]}  a4 {[%clk 0:01:04]} 24. a3 {[%clk 0:00:27]}  Rfc8 {[%clk 0:00:58]} 25. Ka2 {[%clk 0:00:20]}  Nb3 {[%clk 0:00:40]} 26. Nxb3 {[%clk 0:00:19]}  axb3+ {[%clk 0:00:41]} 27. Qxb3 {[%clk 0:00:19]}  Qf2 {[%clk 0:00:39]} 28. Nxe6+ {[%clk 0:00:15]}  fxe6 {[%clk 0:00:37]} 29. Qxb7 {[%clk 0:00:16]}  Kf7 {[%clk 0:00:30]} 30. Rd4 {[%clk 0:00:11]}  Rxa3+ {[%clk 0:00:27]} 31. Kb1 {[%clk 0:00:08]}  Qxg1+ {[%clk 0:00:28]} 32. Kc2 {[%clk 0:00:08]}  Qh2+ {[%clk 0:00:27]} 33. Kd3 {[%clk 0:00:08]}  Ra1 {[%clk 0:00:22]} 34. Qxc8 {[%clk 0:00:07]}  Rd1+ {[%clk 0:00:22]} 35. Ke3 {[%clk 0:00:07]}  Re1+ {[%clk 0:00:23]} 36. Kd3 {[%clk 0:00:07]}  Qe2# {[%clk 0:00:23]} 0-1


[Site "https://www.chess.com"]

[Event "Titled Tuesday Blitz December 20 Early 2022"]
[White "tdf98pantani"]
[Black "AwareIdea"]
[WhiteElo "2734"]
[BlackElo "2513"]
[Result "1-0"]
[Round "04"]
[TimeControl "180+2"]
[Date "2022.12.20"]
[WhiteClock "0:00:22"]
[BlackClock "0:00:10"]

1. d4 {[%clk 0:03:00]}  Nf6 {[%clk 0:02:58]} 2. Nf3 {[%clk 0:03:00]}  e6 {[%clk 0:02:58]} 3. Bf4 {[%clk 0:03:00]}  d5 {[%clk 0:02:49]} 4. e3 {[%clk 0:02:59]}  c5 {[%clk 0:02:50]} 5. Nbd2 {[%clk 0:02:58]}  Nc6 {[%clk 0:02:50]} 6. c3 {[%clk 0:02:53]}  Bd6 {[%clk 0:02:36]} 7. Bg3 {[%clk 0:02:51]}  O-O {[%clk 0:02:23]} 8. Bd3 {[%clk 0:02:47]}  b6 {[%clk 0:02:23]} 9. Ne5 {[%clk 0:02:46]}  Bb7 {[%clk 0:02:22]} 10. f4 {[%clk 0:02:46]}  Ne7 {[%clk 0:02:22]} 11. Bh4 {[%clk 0:02:42]}  Ne4 {[%clk 0:02:14]} 12. Bxe4 {[%clk 0:02:35]}  dxe4 {[%clk 0:02:14]} 13. Ndc4 {[%clk 0:02:33]}  cxd4 {[%clk 0:02:06]} 14. Qxd4 {[%clk 0:02:14]}  Bxe5 {[%clk 0:01:43]} 15. Qxd8 {[%clk 0:02:12]}  Rfxd8 {[%clk 0:01:36]} 16. Bxe7 {[%clk 0:02:12]}  Rd7 {[%clk 0:01:26]} 17. Nxe5 {[%clk 0:02:11]}  Rxe7 {[%clk 0:01:26]} 18. O-O-O {[%clk 0:02:11]}  f6 {[%clk 0:01:22]} 19. Ng4 {[%clk 0:01:52]}  Rc8 {[%clk 0:01:16]} 20. Rd2 {[%clk 0:01:49]}  Kf7 {[%clk 0:01:12]} 21. Rhd1 {[%clk 0:01:48]}  b5 {[%clk 0:01:09]} 22. Rd8 {[%clk 0:01:43]}  Rcc7 {[%clk 0:01:08]} 23. Kb1 {[%clk 0:01:36]}  Bd5 {[%clk 0:01:04]} 24. Nf2 {[%clk 0:01:35]}  a5 {[%clk 0:01:01]} 25. f5 {[%clk 0:01:31]}  Red7 {[%clk 0:00:49]} 26. Rxd7+ {[%clk 0:01:29]}  Rxd7 {[%clk 0:00:49]} 27. fxe6+ {[%clk 0:01:28]}  Kxe6 {[%clk 0:00:49]} 28. b3 {[%clk 0:01:27]}  a4 {[%clk 0:00:44]} 29. Kb2 {[%clk 0:01:27]}  axb3 {[%clk 0:00:44]} 30. axb3 {[%clk 0:01:26]}  Ra7 {[%clk 0:00:43]} 31. g4 {[%clk 0:01:20]}  g5 {[%clk 0:00:39]} 32. Rd4 {[%clk 0:01:19]}  Ke5 {[%clk 0:00:36]} 33. Rb4 {[%clk 0:01:00]}  Bc6 {[%clk 0:00:36]} 34. c4 {[%clk 0:00:57]}  bxc4 {[%clk 0:00:36]} 35. Rxc4 {[%clk 0:00:58]}  Bd5 {[%clk 0:00:35]} 36. Rb4 {[%clk 0:00:54]}  h5 {[%clk 0:00:33]} 37. gxh5 {[%clk 0:00:52]}  Rh7 {[%clk 0:00:28]} 38. Rb5 {[%clk 0:00:51]}  Ke6 {[%clk 0:00:23]} 39. Ng4 {[%clk 0:00:43]}  Rxh5 {[%clk 0:00:17]} 40. Rb6+ {[%clk 0:00:34]}  Ke7 {[%clk 0:00:17]} 41. Nxf6 {[%clk 0:00:31]}  Rxh2+ {[%clk 0:00:17]} 42. Kc3 {[%clk 0:00:32]}  Be6 {[%clk 0:00:16]} 43. Nxe4 {[%clk 0:00:32]}  g4 {[%clk 0:00:16]} 44. Kd4 {[%clk 0:00:29]}  Rb2 {[%clk 0:00:14]} 45. b4 {[%clk 0:00:25]}  Rb3 {[%clk 0:00:14]} 46. Ke5 {[%clk 0:00:24]}  Bd7 {[%clk 0:00:13]} 47. Kf4 {[%clk 0:00:23]}  Rd3 {[%clk 0:00:09]} 48. Nc5 {[%clk 0:00:23]}  Rd5 {[%clk 0:00:05]} 49. Rb7 {[%clk 0:00:23]}  Kd8 {[%clk 0:00:03]} 50. Rxd7+ {[%clk 0:00:22]}  Rxd7 {[%clk 0:00:04]} 51. Nxd7 {[%clk 0:00:22]}  Kxd7 {[%clk 0:00:05]} 52. Kxg4 {[%clk 0:00:23]}  Kc6 {[%clk 0:00:06]} 53. e4 {[%clk 0:00:23]}  Kb5 {[%clk 0:00:06]} 54. e5 {[%clk 0:00:21]}  Kxb4 {[%clk 0:00:07]} 55. e6 {[%clk 0:00:21]}  Kc5 {[%clk 0:00:08]} 56. e7 {[%clk 0:00:22]}  Kd6 {[%clk 0:00:09]} 57. e8=Q {[%clk 0:00:22]}  Kc7 {[%clk 0:00:10]} 58. Qe6 {[%clk 0:00:22]} 1-0


[Site "https://www.chess.com"]

[Event "Titled Tuesday Blitz December 20 Early 2022"]
[White "tusplingher"]
[Black "Arnaldofdelavaramulet"]
[WhiteElo "2362"]
[BlackElo "2648"]
[Result "1-0"]
[Round "04"]
[TimeControl "180+2"]
[Date "2022.12.20"]
[WhiteClock "0:00:04"]
[BlackClock "0:00:02"]

1. e4 {[%clk 0:03:00]}  c5 {[%clk 0:03:00]} 2. Be2 {[%clk 0:03:00]}  Nc6 {[%clk 0:03:00]} 3. d3 {[%clk 0:03:01]}  Nf6 {[%clk 0:03:00]} 4. Be3 {[%clk 0:03:00]}  d5 {[%clk 0:02:58]} 5. exd5 {[%clk 0:02:58]}  Nxd5 {[%clk 0:02:59]} 6. Nf3 {[%clk 0:02:49]}  g6 {[%clk 0:02:54]} 7. O-O {[%clk 0:02:49]}  Bg7 {[%clk 0:02:54]} 8. c3 {[%clk 0:02:45]}  b6 {[%clk 0:02:54]} 9. d4 {[%clk 0:02:39]}  O-O {[%clk 0:02:53]} 10. dxc5 {[%clk 0:02:35]}  Nxe3 {[%clk 0:02:52]} 11. Qxd8 {[%clk 0:02:34]}  Rxd8 {[%clk 0:02:47]} 12. fxe3 {[%clk 0:02:34]}  Bh6 {[%clk 0:02:41]} 13. Kf2 {[%clk 0:02:24]}  bxc5 {[%clk 0:02:20]} 14. Nbd2 {[%clk 0:02:22]}  Ne5 {[%clk 0:02:20]} 15. Nxe5 {[%clk 0:02:07]}  Rxd2 {[%clk 0:02:19]} 16. Nc4 {[%clk 0:02:07]}  Rd8 {[%clk 0:02:03]} 17. Rfd1 {[%clk 0:01:53]}  Be6 {[%clk 0:02:02]} 18. Na5 {[%clk 0:01:43]}  Rxd1 {[%clk 0:01:26]} 19. Rxd1 {[%clk 0:01:41]}  Bxa2 {[%clk 0:01:26]} 20. b3 {[%clk 0:01:38]}  Rb8 {[%clk 0:01:21]} 21. Bc4 {[%clk 0:01:04]}  Bg7 {[%clk 0:01:20]} 22. Ra1 {[%clk 0:01:00]}  Bxc3 {[%clk 0:01:16]} 23. Rxa2 {[%clk 0:01:00]}  Rb6 {[%clk 0:01:15]} 24. Bd5 {[%clk 0:00:26]}  g5 {[%clk 0:01:06]} 25. Nc4 {[%clk 0:00:22]}  Rxb3 {[%clk 0:01:00]} 26. Rxa7 {[%clk 0:00:21]}  e6 {[%clk 0:00:57]} 27. Bf3 {[%clk 0:00:19]}  f5 {[%clk 0:00:22]} 28. Be2 {[%clk 0:00:19]}  g4 {[%clk 0:00:15]} 29. Re7 {[%clk 0:00:18]}  Rb1 {[%clk 0:00:15]} 30. Kg3 {[%clk 0:00:13]}  Re1 {[%clk 0:00:03]} 31. Bd3 {[%clk 0:00:13]}  Rd1 {[%clk 0:00:04]} 32. Rd7 {[%clk 0:00:11]}  Kf8 {[%clk 0:00:02]} 33. Rd6 {[%clk 0:00:06]}  Kf7 {[%clk 0:00:01]} 34. Be2 {[%clk 0:00:05]}  Re1 {[%clk 0:00:01]} 35. Bd3 {[%clk 0:00:04]}  Kf6 {[%clk 0:00:01]} 36. Rd8 {[%clk 0:00:04]}  Rh1 {[%clk 0:00:02]} 37. Rf8+ {[%clk 0:00:04]}  Kg7 {[%clk 0:00:01]} 38. Rd8 {[%clk 0:00:04]}  Be1+ {[%clk 0:00:02]} 39. Kf4 {[%clk 0:00:03]}  Rxh2 {[%clk 0:00:03]} 40. Rd7+ {[%clk 0:00:03]}  Kg6 {[%clk 0:00:02]} 41. Ne5+ {[%clk 0:00:03]}  Kh6 {[%clk 0:00:02]} 42. Nf7+ {[%clk 0:00:03]}  Kh5 {[%clk 0:00:03]} 43. Ne5 {[%clk 0:00:03]}  h6 {[%clk 0:00:02]} 44. Bxf5 {[%clk 0:00:02]}  exf5 {[%clk 0:00:02]} 45. Kxf5 {[%clk 0:00:03]}  Rxg2 {[%clk 0:00:03]} 46. Rh7 {[%clk 0:00:03]}  Bc3 {[%clk 0:00:03]} 47. Nf7 {[%clk 0:00:02]}  Rf2+ {[%clk 0:00:03]} 48. Ke4 {[%clk 0:00:03]}  g3 {[%clk 0:00:03]} 49. Rxh6+ {[%clk 0:00:03]}  Kg4 {[%clk 0:00:04]} 50. Rg6+ {[%clk 0:00:03]}  Kh3 {[%clk 0:00:04]} 51. Ng5+ {[%clk 0:00:03]}  Kg2 {[%clk 0:00:05]} 52. Ne6 {[%clk 0:00:03]}  Kh2 {[%clk 0:00:04]} 53. Nf4 {[%clk 0:00:04]}  Rxf4+ {[%clk 0:00:04]} 54. Kxf4 {[%clk 0:00:04]}  g2 {[%clk 0:00:05]} 55. Kf3 {[%clk 0:00:03]}  g1=N+ {[%clk 0:00:04]} 56. Kf2 {[%clk 0:00:03]}  Nh3+ {[%clk 0:00:03]} 57. Ke2 {[%clk 0:00:04]}  Be5 {[%clk 0:00:02]} 58. Kd3 {[%clk 0:00:04]}  Nf2+ {[%clk 0:00:02]} 59. Kc4 {[%clk 0:00:04]}  Ne4 {[%clk 0:00:01]} 60. Re6 {[%clk 0:00:03]}  Nd2+ {[%clk 0:00:01]} 61. Kxc5 {[%clk 0:00:03]}  Nf3 {[%clk 0:00:01]} 62. Kd5 {[%clk 0:00:03]}  Kg3 {[%clk 0:00:02]} 63. Rxe5 {[%clk 0:00:04]}  Kf2 {[%clk 0:00:02]} 64. e4 {[%clk 0:00:03]}  Ke3 {[%clk 0:00:03]} 65. Rf5 {[%clk 0:00:03]}  Nh4 {[%clk 0:00:03]} 66. Rh5 {[%clk 0:00:02]}  Ng2 {[%clk 0:00:03]} 67. Rg5 {[%clk 0:00:02]}  Nh4 {[%clk 0:00:03]} 68. e5 {[%clk 0:00:02]}  Kf4 {[%clk 0:00:03]} 69. Rh5 {[%clk 0:00:02]}  Ng6 {[%clk 0:00:02]} 70. e6 {[%clk 0:00:02]}  Kg4 {[%clk 0:00:02]} 71. Rh6 {[%clk 0:00:02]}  Nf4+ {[%clk 0:00:01]} 72. Ke5 {[%clk 0:00:03]}  Kg5 {[%clk 0:00:02]} 73. Rh8 {[%clk 0:00:02]}  Ng6+ {[%clk 0:00:02]} 74. Kd6 {[%clk 0:00:03]}  Nxh8 {[%clk 0:00:02]} 75. e7 {[%clk 0:00:03]}  Nf7+ {[%clk 0:00:02]} 76. Ke6 {[%clk 0:00:04]} 1-0


[Site "https://www.chess.com"]

[Event "Titled Tuesday Blitz December 20 Early 2022"]
[White "tylityli"]
[Black "guillembaches"]
[WhiteElo "2334"]
[BlackElo "2464"]
[Result "1-0"]
[Round "04"]
[TimeControl "180+2"]
[Date "2022.12.20"]
[WhiteClock "0:00:06"]
[BlackClock "0:00:10"]

1. d4 {[%clk 0:02:45]}  Nf6 {[%clk 0:02:59]} 2. c4 {[%clk 0:02:43]}  e6 {[%clk 0:03:00]} 3. Nc3 {[%clk 0:02:44]}  d5 {[%clk 0:03:00]} 4. cxd5 {[%clk 0:02:44]}  Nxd5 {[%clk 0:03:01]} 5. e4 {[%clk 0:02:43]}  Nxc3 {[%clk 0:03:01]} 6. bxc3 {[%clk 0:02:43]}  c5 {[%clk 0:03:02]} 7. Rb1 {[%clk 0:02:40]}  Be7 {[%clk 0:03:01]} 8. Nf3 {[%clk 0:02:40]}  O-O {[%clk 0:03:01]} 9. Bc4 {[%clk 0:02:32]}  b6 {[%clk 0:02:54]} 10. O-O {[%clk 0:02:28]}  Bb7 {[%clk 0:02:54]} 11. Qe2 {[%clk 0:02:26]}  cxd4 {[%clk 0:02:42]} 12. cxd4 {[%clk 0:02:25]}  Nd7 {[%clk 0:02:40]} 13. Bf4 {[%clk 0:02:18]}  Rc8 {[%clk 0:02:37]} 14. Ba6 {[%clk 0:02:10]}  Bxa6 {[%clk 0:02:29]} 15. Qxa6 {[%clk 0:02:08]}  Nf6 {[%clk 0:02:22]} 16. Qxa7 {[%clk 0:02:05]}  Nxe4 {[%clk 0:02:16]} 17. Qxb6 {[%clk 0:02:03]}  Nc3 {[%clk 0:02:04]} 18. Qxd8 {[%clk 0:01:59]}  Rfxd8 {[%clk 0:02:04]} 19. Rb2 {[%clk 0:01:55]}  Ra8 {[%clk 0:01:59]} 20. Ra1 {[%clk 0:01:43]}  Ra3 {[%clk 0:01:50]} 21. Bc1 {[%clk 0:01:31]}  Ra4 {[%clk 0:01:32]} 22. h3 {[%clk 0:01:21]}  Rda8 {[%clk 0:01:27]} 23. Rc2 {[%clk 0:01:11]}  Nxa2 {[%clk 0:01:19]} 24. Be3 {[%clk 0:01:06]}  f6 {[%clk 0:01:11]} 25. g3 {[%clk 0:01:00]}  Nb4 {[%clk 0:01:06]} 26. Rxa4 {[%clk 0:00:56]}  Rxa4 {[%clk 0:01:07]} 27. Rc7 {[%clk 0:00:50]}  Nd5 {[%clk 0:01:06]} 28. Rc2 {[%clk 0:00:38]}  Kf7 {[%clk 0:01:03]} 29. Kf1 {[%clk 0:00:30]}  Ra3 {[%clk 0:01:02]} 30. Ke2 {[%clk 0:00:29]}  g5 {[%clk 0:01:01]} 31. Nd2 {[%clk 0:00:24]}  h5 {[%clk 0:00:54]} 32. Nc4 {[%clk 0:00:24]}  Rb3 {[%clk 0:00:51]} 33. Nd2 {[%clk 0:00:22]}  Rb7 {[%clk 0:00:44]} 34. Ne4 {[%clk 0:00:21]}  h4 {[%clk 0:00:39]} 35. Nc5 {[%clk 0:00:19]}  Ra7 {[%clk 0:00:39]} 36. gxh4 {[%clk 0:00:14]}  gxh4 {[%clk 0:00:39]} 37. Kf3 {[%clk 0:00:14]}  Ra3 {[%clk 0:00:37]} 38. Rb2 {[%clk 0:00:12]}  f5 {[%clk 0:00:35]} 39. Rb3 {[%clk 0:00:11]}  Ra4 {[%clk 0:00:31]} 40. Nxa4 {[%clk 0:00:11]}  f4 {[%clk 0:00:30]} 41. Bxf4 {[%clk 0:00:10]}  Kg6 {[%clk 0:00:31]} 42. Be3 {[%clk 0:00:09]}  Kf5 {[%clk 0:00:32]} 43. Rb5 {[%clk 0:00:09]}  Bf6 {[%clk 0:00:33]} 44. Nc3 {[%clk 0:00:08]}  Kg6 {[%clk 0:00:33]} 45. Nxd5 {[%clk 0:00:08]}  exd5 {[%clk 0:00:34]} 46. Rxd5 {[%clk 0:00:09]}  Bg7 {[%clk 0:00:11]} 47. Rb5 {[%clk 0:00:09]}  Kh7 {[%clk 0:00:09]} 48. Rb7 {[%clk 0:00:09]}  Kg6 {[%clk 0:00:10]} 49. Rxg7+ {[%clk 0:00:08]}  Kh5 {[%clk 0:00:08]} 50. Rg5+ {[%clk 0:00:06]}  Kh6 {[%clk 0:00:07]} 51. Kg4 {[%clk 0:00:07]}  Kh7 {[%clk 0:00:07]} 52. Kxh4 {[%clk 0:00:07]}  Kh6 {[%clk 0:00:08]} 53. Kg4 {[%clk 0:00:07]}  Kh7 {[%clk 0:00:08]} 54. Kf5 {[%clk 0:00:08]}  Kh6 {[%clk 0:00:09]} 55. Kf6 {[%clk 0:00:08]}  Kh7 {[%clk 0:00:09]} 56. Kf7 {[%clk 0:00:07]}  Kh6 {[%clk 0:00:10]} 57. Bf4 {[%clk 0:00:06]}  Kh7 {[%clk 0:00:10]} 58. Rh5# {[%clk 0:00:06]} 1-0


[Site "https://www.chess.com"]

[Event "Titled Tuesday Blitz December 20 Early 2022"]
[White "viditchess"]
[Black "Ducrest, Pierre"]
[BlackFideId "1303627"]
[WhiteElo "2986"]
[BlackElo "2004"]
[Result "1/2-1/2"]
[Round "04"]
[TimeControl "180+2"]
[Date "2022.12.20"]
[WhiteClock "0:00:14"]
[BlackClock "0:00:29"]

1. c4 {[%clk 0:03:00]}  Nf6 {[%clk 0:02:59]} 2. g3 {[%clk 0:02:59]}  c6 {[%clk 0:02:58]} 3. Bg2 {[%clk 0:02:56]}  d5 {[%clk 0:02:59]} 4. Nf3 {[%clk 0:02:51]}  dxc4 {[%clk 0:02:58]} 5. O-O {[%clk 0:02:23]}  Nbd7 {[%clk 0:02:57]} 6. Qc2 {[%clk 0:02:16]}  Nb6 {[%clk 0:02:57]} 7. a4 {[%clk 0:02:15]}  a5 {[%clk 0:02:56]} 8. Na3 {[%clk 0:02:14]}  g6 {[%clk 0:02:56]} 9. Nxc4 {[%clk 0:02:10]}  Nxc4 {[%clk 0:02:56]} 10. Qxc4 {[%clk 0:02:10]}  Bg7 {[%clk 0:02:56]} 11. d4 {[%clk 0:01:59]}  O-O {[%clk 0:02:52]} 12. Bf4 {[%clk 0:01:52]}  Be6 {[%clk 0:02:51]} 13. Qc1 {[%clk 0:01:51]}  Bd5 {[%clk 0:02:50]} 14. Rd1 {[%clk 0:01:51]}  Qb6 {[%clk 0:02:47]} 15. Bh6 {[%clk 0:01:33]}  Rfd8 {[%clk 0:02:42]} 16. Bxg7 {[%clk 0:01:33]}  Kxg7 {[%clk 0:02:43]} 17. e3 {[%clk 0:01:31]}  Rac8 {[%clk 0:02:41]} 18. Ra3 {[%clk 0:01:27]}  c5 {[%clk 0:02:26]} 19. dxc5 {[%clk 0:01:23]}  Rxc5 {[%clk 0:02:26]} 20. Rc3 {[%clk 0:01:21]}  Rdc8 {[%clk 0:02:19]} 21. Rxc5 {[%clk 0:01:11]}  Rxc5 {[%clk 0:02:12]} 22. Qd2 {[%clk 0:01:11]}  e6 {[%clk 0:02:04]} 23. Qd4 {[%clk 0:01:05]}  Qc7 {[%clk 0:01:50]} 24. Qf4 {[%clk 0:00:22]}  Qxf4 {[%clk 0:01:34]} 25. gxf4 {[%clk 0:00:23]}  Rc2 {[%clk 0:01:35]} 26. b3 {[%clk 0:00:22]}  Rb2 {[%clk 0:01:28]} 27. Nd4 {[%clk 0:00:21]}  Bxg2 {[%clk 0:01:28]} 28. Kxg2 {[%clk 0:00:22]}  Ng4 {[%clk 0:01:29]} 29. Kf3 {[%clk 0:00:19]}  Nxf2 {[%clk 0:00:51]} 30. Rc1 {[%clk 0:00:19]}  Nd3 {[%clk 0:00:47]} 31. Rc7 {[%clk 0:00:19]}  Kf6 {[%clk 0:00:47]} 32. Rxb7 {[%clk 0:00:19]}  Rxh2 {[%clk 0:00:45]} 33. Nc6 {[%clk 0:00:20]}  Rf2+ {[%clk 0:00:33]} 34. Kg3 {[%clk 0:00:19]}  Re2 {[%clk 0:00:33]} 35. Kf3 {[%clk 0:00:18]}  Rf2+ {[%clk 0:00:34]} 36. Kg3 {[%clk 0:00:18]}  Re2 {[%clk 0:00:29]} 37. Kf3 {[%clk 0:00:14]}  Rf2+ {[%clk 0:00:29]} 1/2-1/2


[Site "https://www.chess.com"]